[Event "XII Paracin Festival 2019"]
[Site "Paracin"]
[Date "2019.07.09"]
[Round "6.9"]
[White "Song, Raymond"]
[Black "Avalyan, Artur"]
[Result "1-0"]
[ECO "E04"]
[WhiteElo "2456"]
[BlackElo "2351"]
[Annotator "ChessBase"]
[PlyCount "113"]
[EventDate "2019.07.05"]
[EventType "swiss"]
[EventCountry "SRB"]
[SourceTitle "playchess.com"]
[Source "ChessBase"]
[SourceQuality "1"]
[TimeControl "5400+30"]

1. Nf3 {[%emt 0:00:00]} d5 {[%emt 0:00:00]} 2. d4 {[%emt 0:00:00]} Nf6 {[%emt 0:00:00]} 3. c4 {[%emt 0:00:00]} e6 {[%emt 0:00:00]} 4. g3 {[%emt 0:00:00]} dxc4 {[%emt 0:00:00]} 5. Bg2 {[%emt 0:00:00]} c5 {[%emt 0:00:00]} 6. O-O {[%emt 0:00:00]} Nc6 {[%emt 0:00:00]} 7. dxc5 {[%emt 0:00:13]} Qxd1 {[%emt 0:00:00]} 8. Rxd1 {[%emt 0:00:04]} Bxc5 {[%emt 0:00:02]} 9. Nbd2 {[%emt 0:00:05]} c3 {[%emt 0:00:04]} 10. bxc3 {[%emt 0:00:03]} O-O {[%emt 0:00:03]} 11. Nb3 {[%emt 0:00:03]} Be7 {[%emt 0:00:04]} 12. Nfd4 {[%emt 0:00:03]} Bd7 {[%emt 0:00:03]} 13. Bg5 {[%emt 0:01:35]} Rfd8 {[%emt 0:00:57]} 14. Bxf6 {[%emt 0:00:46]} Bxf6 {[%emt 0:23:13]} 15. Nc5 {[%emt 0:00:05]} Nxd4 {[%emt 0:08:36]} 16. cxd4 {[%emt 0:00:06]} Bc6 {[%emt 0:00:19]} 17. Bxc6 {[%emt 0:00:06]} bxc6 {[%emt 0:01:10]} 18. e3 {[%emt 0:00:08]} e5 {[%emt 0:08:34]} 19. dxe5 {[%emt 0:00:05]} Bxe5 {[%emt 0:00:04]} 20. Rab1 {[%emt 0:00:04]} Rxd1+ {[%emt 0:12:44]} 21. Rxd1 {[%emt 0:00:02]} Bc7 {[%emt 0:00:48]} 22. Rd7 {[%emt 0:04:23]} Bb6 {[%emt 0:00:18]} 23. Nd3 {[%emt 0:03:42]} Re8 {[%emt 0:06:25]} 24. Rd6 {[%emt 0:02:39]} Rc8 {[%emt 0:08:19]} 25. Ne5 {[%emt 0:00:31]} c5 {[%emt 0:02:06]} 26. Nc4 {[%emt 0:00:08]} Kf8 {[%emt 0:04:20]} 27. Kf1 {[%emt 0:01:43]} Ke7 {[%emt 0:01:34]} 28. Ke2 {[%emt 0:00:23]} g6 {[%emt 0:02:59]} 29. e4 {[%emt 0:02:21]} h5 {[%emt 0:00:24]} 30. Rd3 {[%emt 0:01:17]} Rb8 {[%emt 0:02:32]} 31. Rd5 {[%emt 0:02:33]} Bd8 {[%emt 0:03:15]} 32. Rxc5 {[%emt 0:00:50]} Rb1 {[%emt 0:00:06]} 33. Re5+ {[%emt 0:00:32]} Kf6 {[%emt 0:01:10]} 34. Re8 {[%emt 0:05:05]} Bb6 {[%emt 0:00:24]} 35. e5+ {[%emt 0:00:24]} Kg7 {[%emt 0:00:36]} 36. Re7 {[%emt 0:30:09]} Ra1 {[%emt 0:01:10]} 37. f4 {[%emt 0:00:15]} Rxa2+ {[%emt 0:00:27]} 38. Kf3 {[%emt 0:00:01]} Kf8 {[%emt 0:05:17]} 39. Rb7 {[%emt 0:00:31]} Bc5 {[%emt 0:00:09]} 40. Rc7 {[%emt 0:01:39]} Be7 {[%emt 0:00:14]} 41. Rc8+ {[%emt 0:09:05]} Kg7 {[%emt 0:00:04]} 42. Ne3 {[%emt 0:01:07]} Ra3 {[%emt 0:03:05]} 43. h3 {[%emt 0:01:15]} a5 {[%emt 0:00:16]} 44. g4 {[%emt 0:00:10]} hxg4+ {[%emt 0:00:03]} 45. hxg4 {[%emt 0:00:01]} Bb4 {[%emt 0:01:43]} 46. Ke4 {[%emt 0:00:25]} Rc3 {[%emt 0:01:02]} 47. Ra8 {[%emt 0:00:53]} Bc5 {[%emt 0:02:18]} 48. Nd5 {[%emt 0:00:19]} Rc4+ {[%emt 0:00:02]} 49. Kf3 {[%emt 0:00:04]} Bf8 {[%emt 0:01:56]} 50. f5 {[%emt 0:08:51]} gxf5 {[%emt 0:00:03]} 51. gxf5 {[%emt 0:00:10]} Rd4 {[%emt 0:01:34]} 52. f6+ {[%emt 0:01:26]} Kh7 {[%emt 0:00:10]} 53. Rxf8 {[%emt 0:00:39]} Rxd5 {[%emt 0:00:04]} 54. Rxf7+ {[%emt 0:00:09]} Kg8 {[%emt 0:00:54]} 55. Rg7+ {[%emt 0:00:11]} Kf8 {[%emt 0:00:05]} 56. Ke4 {[%emt 0:00:02]} Rb5 {[%emt 0:00:08]} 57. Ra7 {[%emt 0:00:08]} 1-0

[Event "XII Paracin Festival 2019"]
[Site "Paracin"]
[Date "2019.07.09"]
[Round "6.10"]
[White "Harvey, Marcus R"]
[Black "Perunovic, Milos"]
[Result "1/2-1/2"]
[ECO "A04"]
[WhiteElo "2402"]
[BlackElo "2597"]
[Annotator "ChessBase"]
[PlyCount "102"]
[EventDate "2019.07.05"]
[EventType "swiss"]
[EventCountry "SRB"]
[SourceTitle "playchess.com"]
[Source "ChessBase"]
[SourceQuality "1"]
[TimeControl "5400+30"]

1. Nf3 {[%emt 0:02:26]} c5 {[%emt 0:01:56]} 2. c4 {[%emt 0:00:21]} Nc6 {[%emt 0:01:50]} 3. d4 {[%emt 0:00:04]} cxd4 {[%emt 0:00:09]} 4. Nxd4 {[%emt 0:00:04]} e5 {[%emt 0:04:50]} 5. Nc2 {[%emt 0:00:23]} d6 {[%emt 0:07:40]} 6. e4 {[%emt 0:00:33]} Be6 {[%emt 0:12:43]} 7. Nc3 {[%emt 0:00:52]} Nf6 {[%emt 0:01:16]} 8. h3 {[%emt 0:03:21]} Be7 {[%emt 0:01:46]} 9. Be3 {[%emt 0:00:25]} Rc8 {[%emt 0:09:42]} 10. b3 {[%emt 0:03:41]} a6 {[%emt 0:04:03]} 11. Qd2 {[%emt 0:00:36]} O-O {[%emt 0:02:44]} 12. Bd3 {[%emt 0:12:11]} b5 {[%emt 0:08:45]} 13. cxb5 {[%emt 0:02:20]} axb5 {[%emt 0:01:09]} 14. Bxb5 {[%emt 0:04:51]} Qa5 {[%emt 0:02:02]} 15. O-O {[%emt 0:10:20]} Na7 {[%emt 0:14:58]} 16. Bc4 {[%emt 0:12:45]} Bxc4 {[%emt 0:01:06]} 17. bxc4 {[%emt 0:00:07]} Nc6 {[%emt 0:08:53]} 18. Qd3 {[%emt 0:02:14]} Qa6 {[%emt 0:03:05]} 19. Rfc1 {[%emt 0:02:08]} Rfe8 {[%emt 0:01:56]} 20. Bg5 {[%emt 0:04:44]} h6 {[%emt 0:01:49]} 21. Bxf6 {[%emt 0:01:38]} Bxf6 {[%emt 0:00:01]} 22. Ne3 {[%emt 0:03:50]} Bg5 {[%emt 0:01:21]} 23. Nb5 {[%emt 0:00:46]} Nd4 {[%emt 0:01:53]} 24. h4 {[%emt 0:01:52]} Bxh4 {[%emt 0:01:02]} 25. Nxd4 {[%emt 0:00:07]} exd4 {[%emt 0:00:01]} 26. Nd5 {[%emt 0:00:13]} Rc5 {[%emt 0:01:05]} 27. g3 {[%emt 0:08:27]} Bg5 {[%emt 0:00:06]} 28. f4 {[%emt 0:00:18]} Rxd5 {[%emt 0:01:37]} 29. exd5 {[%emt 0:02:14]} Re3 {[%emt 0:00:05]} 30. Qxe3 {[%emt 0:01:11]} dxe3 {[%emt 0:00:06]} 31. fxg5 {[%emt 0:00:04]} Qa3 {[%emt 0:00:20]} 32. gxh6 {[%emt 0:01:28]} Qb2 {[%emt 0:00:22]} 33. Rf1 {[%emt 0:00:57]} Qe5 {[%emt 0:00:36]} 34. Kh2 {[%emt 0:01:40]} Qh5+ {[%emt 0:00:08]} 35. Kg2 {[%emt 0:01:02]} Qe2+ {[%emt 0:00:18]} 36. Kg1 {[%emt 0:00:05]} Qg4 {[%emt 0:00:18]} 37. Kg2 {[%emt 0:00:21]} Qxc4 {[%emt 0:00:18]} 38. a4 {[%emt 0:00:43]} Qxd5+ {[%emt 0:00:12]} 39. Kh2 {[%emt 0:02:56]} Qa5 {[%emt 0:01:12]} 40. Kg2 {[%emt 0:06:37]} d5 {[%emt 0:00:34]} 41. Kf3 {[%emt 0:01:05]} d4 {[%emt 0:00:22]} 42. Ke4 {[%emt 0:00:13]} e2 {[%emt 0:02:55]} 43. Rh1 {[%emt 0:00:30]} gxh6 {[%emt 0:02:48]} 44. Kxd4 {[%emt 0:00:05]} Qb4+ {[%emt 0:00:58]} 45. Kd3 {[%emt 0:00:23]} Qb3+ {[%emt 0:00:06]} 46. Kxe2 {[%emt 0:00:07]} Qc2+ {[%emt 0:00:04]} 47. Ke3 {[%emt 0:01:17]} Qc3+ {[%emt 0:00:05]} 48. Kf4 {[%emt 0:00:51]} Qd4+ {[%emt 0:00:06]} 49. Kf3 {[%emt 0:00:16]} Qd3+ {[%emt 0:00:06]} 50. Kg4 {[%emt 0:01:06]} Qe4+ {[%emt 0:00:16]} 51. Kh3 {[%emt 0:00:07]} Qe6+ {[%emt 0:00:16]} 1/2-1/2

[Event "XII Paracin Festival 2019"]
[Site "Paracin"]
[Date "2019.07.09"]
[Round "6.11"]
[White "Svetushkin, Dmitry"]
[Black "Nestorovic, Dejan"]
[Result "1-0"]
[ECO "B43"]
[WhiteElo "2528"]
[BlackElo "2341"]
[Annotator "ChessBase"]
[PlyCount "59"]
[EventDate "2019.07.05"]
[EventType "swiss"]
[EventCountry "SRB"]
[SourceTitle "playchess.com"]
[Source "ChessBase"]
[SourceQuality "1"]
[TimeControl "5400+30"]

1. e4 {[%emt 0:01:40]} c5 {[%emt 0:00:00]} 2. Nf3 {[%emt 0:00:13]} e6 {[%emt 0:00:00]} 3. Nc3 {[%emt 0:00:38]} a6 {[%emt 0:00:00]} 4. d4 {[%emt 0:00:16]} cxd4 {[%emt 0:00:05]} 5. Nxd4 {[%emt 0:00:05]} Qc7 {[%emt 0:00:09]} 6. Bd3 {[%emt 0:00:29]} Nf6 {[%emt 0:00:06]} 7. f4 {[%emt 0:00:06]} d6 {[%emt 0:00:12]} 8. Qf3 {[%emt 0:00:11]} b5 {[%emt 0:00:08]} 9. g4 {[%emt 0:00:52]} b4 {[%emt 0:10:43]} 10. Nce2 {[%emt 0:01:40]} Bb7 {[%emt 0:02:20]} 11. Be3 {[%emt 0:04:33]} d5 {[%emt 0:12:35]} 12. e5 {[%emt 0:00:31]} Nfd7 {[%emt 0:04:06]} 13. O-O {[%emt 0:07:20]} Nc6 {[%emt 0:07:53]} 14. Nxc6 {[%emt 0:11:14]} Bxc6 {[%emt 0:00:09]} 15. Bd4 {[%emt 0:00:07]} Bb5 {[%emt 0:10:26]} 16. Qe3 {[%emt 0:03:24]} g6 {[%emt 0:19:13]} 17. f5 {[%emt 0:07:15]} gxf5 {[%emt 0:01:41]} 18. gxf5 {[%emt 0:00:07]} O-O-O {[%emt 0:08:06]} 19. Bxb5 {[%emt 0:04:17]} axb5 {[%emt 0:00:03]} 20. c3 {[%emt 0:00:06]} Kb8 {[%emt 0:03:23]} 21. cxb4 {[%emt 0:04:39]} Rg8+ {[%emt 0:01:00]} 22. Kh1 {[%emt 0:00:06]} Bxb4 {[%emt 0:00:08]} 23. a4 {[%emt 0:00:04]} Rg4 {[%emt 0:08:50]} 24. Rfc1 {[%emt 0:05:31]} Qb7 {[%emt 0:00:06]} 25. axb5 {[%emt 0:03:44]} Bc5 {[%emt 0:00:08]} 26. b4 {[%emt 0:11:07]} Bb6 {[%emt 0:00:23]} 27. Rc6 {[%emt 0:00:05]} Re4 {[%emt 0:01:52]} 28. Qg1 {[%emt 0:00:30]} Bxd4 {[%emt 0:05:55]} 29. Nxd4 {[%emt 0:00:32]} Nxe5 {[%emt 0:00:09]} 30. Rb6 {[%emt 0:05:08]} 1-0

[Event "XII Paracin Festival 2019"]
[Site "Paracin"]
[Date "2019.07.09"]
[Round "6.12"]
[White "Koksal, Ege"]
[Black "Savic, Miodrag R"]
[Result "1-0"]
[ECO "E11"]
[WhiteElo "2368"]
[BlackElo "2503"]
[Annotator "ChessBase"]
[PlyCount "87"]
[EventDate "2019.07.05"]
[EventType "swiss"]
[EventCountry "SRB"]
[SourceTitle "playchess.com"]
[Source "ChessBase"]
[SourceQuality "1"]
[TimeControl "5400+30"]

1. d4 {[%emt 0:02:12]} Nf6 {[%emt 0:00:00]} 2. c4 {[%emt 0:00:06]} e6 {[%emt 0:00:00]} 3. Nf3 {[%emt 0:00:05]} Bb4+ {[%emt 0:00:28]} 4. Bd2 {[%emt 0:00:05]} a5 {[%emt 0:00:14]} 5. g3 {[%emt 0:01:06]} b6 {[%emt 0:06:51]} 6. Bg2 {[%emt 0:01:16]} Bb7 {[%emt 0:00:01]} 7. O-O {[%emt 0:00:32]} O-O {[%emt 0:00:04]} 8. Bf4 {[%emt 0:01:50]} Be7 {[%emt 0:09:27]} 9. Nc3 {[%emt 0:01:11]} Ne4 {[%emt 0:07:54]} 10. Nb5 {[%emt 0:06:44]} Na6 {[%emt 0:12:04]} 11. Rc1 {[%emt 0:08:57]} c6 {[%emt 0:08:27]} 12. Nc3 {[%emt 0:10:53]} Nxc3 {[%emt 0:00:18]} 13. Rxc3 {[%emt 0:00:02]} d6 {[%emt 0:00:51]} 14. Nd2 {[%emt 0:08:59]} Re8 {[%emt 0:04:21]} 15. Rc1 {[%emt 0:01:19]} Bf8 {[%emt 0:06:28]} 16. Nb1 {[%emt 0:05:12]} Rb8 {[%emt 0:08:32]} 17. Nc3 {[%emt 0:04:18]} b5 {[%emt 0:06:11]} 18. cxb5 {[%emt 0:17:24]} cxb5 {[%emt 0:00:07]} 19. d5 {[%emt 0:00:03]} e5 {[%emt 0:05:00]} 20. Be3 {[%emt 0:00:41]} Ba8 {[%emt 0:02:22]} 21. b3 {[%emt 0:04:35]} Qd7 {[%emt 0:02:28]} 22. a4 {[%emt 0:01:37]} bxa4 {[%emt 0:01:39]} 23. bxa4 {[%emt 0:00:01]} Rec8 {[%emt 0:01:03]} 24. Nb5 {[%emt 0:01:18]} Rxc1 {[%emt 0:01:01]} 25. Qxc1 {[%emt 0:02:19]} Qg4 {[%emt 0:03:08]} 26. Qd1 {[%emt 0:02:03]} Rc8 {[%emt 0:00:30]} 27. Bd2 {[%emt 0:01:00]} Nc5 {[%emt 0:04:20]} 28. Bxa5 {[%emt 0:07:20]} Nxa4 {[%emt 0:01:22]} 29. e4 {[%emt 0:01:04]} Qxd1 {[%emt 0:00:06]} 30. Rxd1 Nb2 {[%emt 0:02:03]} 31. Rb1 {[%emt 0:00:32]} Nc4 {[%emt 0:00:02]} 32. Bc7 {[%emt 0:02:27]} Na3 {[%emt 0:00:55]} 33. Nxa3 {[%emt 0:00:51]} Rxc7 {[%emt 0:00:01]} 34. Rb8 {[%emt 0:00:14]} Bb7 {[%emt 0:00:41]} 35. Bf1 {[%emt 0:03:01]} Bc8 {[%emt 0:01:04]} 36. Kg2 {[%emt 0:00:52]} Rc1 {[%emt 0:03:59]} 37. Bb5 {[%emt 0:01:38]} f5 {[%emt 0:01:46]} 38. Nc4 {[%emt 0:00:43]} Rb1 {[%emt 0:01:43]} 39. Rxc8 {[%emt 0:00:13]} Rxb5 {[%emt 0:00:10]} 40. Nxd6 {[%emt 0:00:10]} Rb6 {[%emt 0:01:03]} 41. Nxf5 {[%emt 0:00:10]} Kf7 {[%emt 0:00:26]} 42. Rc7+ {[%emt 0:00:38]} Kf6 {[%emt 0:00:01]} 43. Ne3 {[%emt 0:01:36]} Rb4 {[%emt 0:00:38]} 44. Rc4 {[%emt 0:00:17]} 1-0

[Event "XII Paracin Festival 2019"]
[Site "Paracin"]
[Date "2019.07.09"]
[Round "6.13"]
[White "Asadli, Vugar"]
[Black "Liu, Zhaoqi"]
[Result "1/2-1/2"]
[ECO "A00"]
[WhiteElo "2502"]
[BlackElo "2386"]
[Annotator "ChessBase"]
[PlyCount "48"]
[EventDate "2019.07.05"]
[EventType "swiss"]
[EventCountry "SRB"]
[SourceTitle "playchess.com"]
[Source "ChessBase"]
[SourceQuality "1"]
[TimeControl "5400+30"]

1. g3 {[%emt 0:00:57]} c5 {[%emt 0:01:16]} 2. Bg2 {[%emt 0:00:57]} Nc6 {[%emt 0:00:09]} 3. e4 {[%emt 0:03:12]} g6 {[%emt 0:00:34]} 4. Ne2 {[%emt 0:00:33]} Bg7 {[%emt 0:00:03]} 5. c3 {[%emt 0:00:09]} e5 {[%emt 0:00:49]} 6. a3 {[%emt 0:02:03]} a5 {[%emt 0:03:02]} 7. d3 {[%emt 0:02:01]} Nge7 {[%emt 0:01:03]} 8. Be3 {[%emt 0:01:18]} b6 {[%emt 0:00:28]} 9. c4 {[%emt 0:03:13]} d6 {[%emt 0:01:10]} 10. Nbc3 {[%emt 0:00:11]} Nd4 {[%emt 0:02:42]} 11. O-O {[%emt 0:02:51]} O-O {[%emt 0:05:34]} 12. Rb1 {[%emt 0:01:56]} Be6 {[%emt 0:03:57]} 13. Na4 {[%emt 0:08:06]} b5 {[%emt 0:04:04]} 14. Bxd4 {[%emt 0:01:45]} cxd4 {[%emt 0:03:36]} 15. cxb5 {[%emt 0:00:04]} Bd7 {[%emt 0:00:03]} 16. b6 {[%emt 0:00:09]} Bxa4 {[%emt 0:00:38]} 17. Qxa4 {[%emt 0:00:04]} Qxb6 {[%emt 0:00:05]} 18. f4 {[%emt 0:03:30]} Qa6 {[%emt 0:06:51]} 19. Rf3 {[%emt 0:07:16]} d5 {[%emt 0:05:46]} 20. exd5 {[%emt 0:02:20]} e4 {[%emt 0:00:44]} 21. dxe4 {[%emt 0:01:47]} Qxe2 {[%emt 0:00:05]} 22. Rf2 {[%emt 0:00:13]} Qa6 {[%emt 0:02:57]} 23. e5 {[%emt 0:00:11]} Nf5 {[%emt 0:02:14]} 24. d6 {[%emt 0:00:48]} Rab8 1/2-1/2

[Event "XII Paracin Festival 2019"]
[Site "Paracin"]
[Date "2019.07.09"]
[Round "6.14"]
[White "Milanovic, Danilo"]
[Black "Baglan, Esat"]
[Result "0-1"]
[ECO "A85"]
[WhiteElo "2492"]
[BlackElo "2336"]
[Annotator "ChessBase"]
[PlyCount "70"]
[EventDate "2019.07.05"]
[EventType "swiss"]
[EventCountry "SRB"]
[SourceTitle "playchess.com"]
[Source "ChessBase"]
[SourceQuality "1"]
[TimeControl "5400+30"]

1. d4 {[%emt 0:03:36]} f5 {[%emt 0:00:00]} 2. c4 {[%emt 0:03:02]} Nf6 {[%emt 0:00:00]} 3. Nc3 {[%emt 0:00:13]} d6 {[%emt 0:00:11]} 4. Bg5 {[%emt 0:01:41]} Nbd7 {[%emt 0:00:11]} 5. e3 {[%emt 0:00:07]} g6 {[%emt 0:04:54]} 6. Bd3 {[%emt 0:03:06]} Bg7 {[%emt 0:00:13]} 7. Nge2 {[%emt 0:01:26]} e5 {[%emt 0:00:16]} 8. f3 {[%emt 0:00:46]} O-O {[%emt 0:01:43]} 9. O-O {[%emt 0:30:51]} a5 {[%emt 0:08:58]} 10. Rc1 {[%emt 0:04:36]} c6 {[%emt 0:05:10]} 11. a3 {[%emt 0:05:59]} Qe7 {[%emt 0:04:14]} 12. b4 {[%emt 0:02:25]} axb4 {[%emt 0:06:25]} 13. axb4 {[%emt 0:00:07]} h6 {[%emt 0:03:38]} 14. Bh4 {[%emt 0:00:19]} g5 {[%emt 0:03:32]} 15. Bg3 {[%emt 0:06:59]} Nh5 {[%emt 0:32:32]} 16. Bf2 {[%emt 0:01:32]} Ndf6 {[%emt 0:00:31]} 17. Qc2 {[%emt 0:20:56]} e4 {[%emt 0:14:53]} 18. fxe4 {[%emt 0:00:11]} fxe4 {[%emt 0:00:11]} 19. Bxe4 {[%emt 0:04:48]} Ng4 {[%emt 0:02:51]} 20. Qd3 {[%emt 0:02:40]} Nxf2 {[%emt 0:02:14]} 21. Rxf2 {[%emt 0:00:03]} Rxf2 {[%emt 0:00:22]} 22. Kxf2 {[%emt 0:00:03]} Nf6 {[%emt 0:00:28]} 23. Kg1 {[%emt 0:00:11]} Bd7 {[%emt 0:00:55]} 24. Bg6 {[%emt 0:02:39]} Ng4 {[%emt 0:02:40]} 25. e4 {[%emt 0:00:38]} Rf8 {[%emt 0:03:16]} 26. h3 {[%emt 0:01:20]} Nf2 {[%emt 0:01:01]} 27. Qe3 {[%emt 0:01:14]} Rf6 {[%emt 0:01:37]} 28. Bh5 {[%emt 0:00:38]} Qf8 {[%emt 0:00:11]} 29. c5 {[%emt 0:01:30]} g4 {[%emt 0:00:38]} 30. h4 {[%emt 0:00:49]} dxc5 {[%emt 0:00:40]} 31. bxc5 {[%emt 0:00:09]} Nh3+ {[%emt 0:00:32]} 32. gxh3 {[%emt 0:00:39]} Rf3 {[%emt 0:00:08]} 33. Qd2 {[%emt 0:00:03]} Qf6 {[%emt 0:00:25]} 34. Qe1 {[%emt 0:00:46]} Rxh3 {[%emt 0:00:09]} 35. Qf2 {[%emt 0:00:21]} Rh1+ {[%emt 0:00:17]} 0-1

[Event "XII Paracin Festival 2019"]
[Site "Paracin"]
[Date "2019.07.09"]
[Round "6.15"]
[White "Franklin, Samuel G A"]
[Black "Stojanovic, Mihajlo"]
[Result "1/2-1/2"]
[ECO "C11"]
[WhiteElo "2339"]
[BlackElo "2483"]
[Annotator "ChessBase"]
[PlyCount "40"]
[EventDate "2019.07.05"]
[EventType "swiss"]
[EventCountry "SRB"]
[SourceTitle "playchess.com"]
[Source "ChessBase"]
[SourceQuality "1"]
[TimeControl "5400+30"]

1. e4 {[%emt 0:00:00]} e6 {[%emt 0:00:00]} 2. d4 {[%emt 0:00:00]} d5 {[%emt 0:00:00]} 3. Nc3 {[%emt 0:00:10]} Nf6 {[%emt 0:00:00]} 4. e5 {[%emt 0:00:37]} Nfd7 {[%emt 0:00:04]} 5. f4 {[%emt 0:00:08]} c5 {[%emt 0:00:06]} 6. Nf3 {[%emt 0:00:10]} Nc6 {[%emt 0:00:08]} 7. Be3 {[%emt 0:00:11]} a6 {[%emt 0:00:06]} 8. Qd2 {[%emt 0:00:49]} b5 {[%emt 0:00:08]} 9. dxc5 {[%emt 0:00:39]} Bxc5 {[%emt 0:00:05]} 10. Bd3 {[%emt 0:01:02]} Qb6 {[%emt 0:00:08]} 11. Bf2 {[%emt 0:00:09]} Bxf2+ {[%emt 0:00:15]} 12. Qxf2 {[%emt 0:00:06]} Qxf2+ {[%emt 0:00:08]} 13. Kxf2 {[%emt 0:00:06]} Ke7 {[%emt 0:00:08]} 14. Ne2 {[%emt 0:03:17]} f6 {[%emt 0:04:09]} 15. exf6+ {[%emt 0:01:13]} gxf6 {[%emt 0:00:04]} 16. Ned4 {[%emt 0:12:55]} Nxd4 {[%emt 0:04:01]} 17. Nxd4 {[%emt 0:00:24]} e5 {[%emt 0:10:54]} 18. Rhe1 {[%emt 0:03:38]} Kd6 {[%emt 0:01:09]} 19. Nf5+ {[%emt 0:01:52]} Kc7 {[%emt 0:01:21]} 20. b4 {[%emt 0:09:48]} Rb8 {[%emt 0:41:43]} 1/2-1/2

[Event "XII Paracin Festival 2019"]
[Site "Paracin"]
[Date "2019.07.09"]
[Round "6.16"]
[White "Chen, Peng"]
[Black "Stankovic, Milos"]
[Result "1/2-1/2"]
[ECO "B10"]
[WhiteElo "2328"]
[BlackElo "2462"]
[Annotator "ChessBase"]
[PlyCount "59"]
[EventDate "2019.07.05"]
[EventType "swiss"]
[EventCountry "SRB"]
[SourceTitle "playchess.com"]
[Source "ChessBase"]
[SourceQuality "1"]
[TimeControl "5400+30"]

1. e4 {[%emt 0:01:09]} c6 {[%emt 0:00:00]} 2. Nf3 {[%emt 0:00:25]} d5 {[%emt 0:00:20]} 3. exd5 {[%emt 0:00:30]} cxd5 {[%emt 0:00:32]} 4. Ne5 {[%emt 0:00:08]} Nc6 {[%emt 0:01:28]} 5. d4 {[%emt 0:00:34]} Nf6 {[%emt 0:01:46]} 6. Bb5 {[%emt 0:00:18]} Bd7 {[%emt 0:01:32]} 7. Nxd7 {[%emt 0:00:14]} Qxd7 {[%emt 0:00:31]} 8. c3 {[%emt 0:00:03]} g6 {[%emt 0:01:41]} 9. O-O {[%emt 0:00:40]} Bg7 {[%emt 0:00:32]} 10. Re1 {[%emt 0:00:32]} O-O {[%emt 0:01:42]} 11. Nd2 {[%emt 0:00:59]} a6 {[%emt 0:05:20]} 12. Bd3 {[%emt 0:07:33]} Qd6 {[%emt 0:02:15]} 13. a4 {[%emt 0:07:08]} e5 {[%emt 0:04:30]} 14. dxe5 {[%emt 0:00:39]} Nxe5 {[%emt 0:00:14]} 15. Nf3 {[%emt 0:00:03]} Nxd3 {[%emt 0:02:56]} 16. Qxd3 {[%emt 0:00:16]} Rfe8 {[%emt 0:01:11]} 17. Rxe8+ {[%emt 0:04:30]} Rxe8 {[%emt 0:03:12]} 18. Be3 {[%emt 0:00:02]} Ng4 {[%emt 0:02:33]} 19. Bd4 {[%emt 0:12:51]} Bxd4 {[%emt 0:01:49]} 20. Qxd4 {[%emt 0:23:13]} Re4 {[%emt 0:02:13]} 21. Qa7 {[%emt 0:02:44]} Re2 {[%emt 0:14:22]} 22. Qxb7 {[%emt 0:00:53]} Nxf2 {[%emt 0:00:51]} 23. Rf1 {[%emt 0:04:39]} Nd3 {[%emt 0:02:29]} 24. Nd4 {[%emt 0:02:25]} Re7 {[%emt 0:00:50]} 25. Qc8+ {[%emt 0:01:06]} Kg7 {[%emt 0:00:11]} 26. Qg4 {[%emt 0:00:36]} Kh8 {[%emt 0:04:25]} 27. Qc8+ {[%emt 0:04:42]} Kg7 {[%emt 0:00:08]} 28. Qg4 {[%emt 0:00:37]} Kh8 {[%emt 0:08:29]} 29. Qc8+ {[%emt 0:03:54]} Kg7 {[%emt 0:03:07]} 30. Qg4 {[%emt 0:00:26]} 1/2-1/2

[Event "XII Paracin Festival 2019"]
[Site "Paracin"]
[Date "2019.07.09"]
[Round "6.17"]
[White "Cabarkapa, Novak"]
[Black "Lazov, Toni"]
[Result "1/2-1/2"]
[ECO "A01"]
[WhiteElo "2444"]
[BlackElo "2313"]
[Annotator "NA"]
[PlyCount "29"]
[EventDate "2019.07.05"]
[EventType "swiss"]
[EventCountry "SRB"]
[SourceTitle "playchess.com"]
[Source "ChessBase"]
[SourceQuality "1"]
[TimeControl "5400+30"]

1. b3 {[%emt 0:00:02]} e5 {[%emt 0:03:46]} 2. Bb2 {[%emt 0:00:10]} Nc6 {[%emt 0:00:10]} 3. e3 {[%emt 0:00:52]} Nf6 {[%emt 0:00:50]} 4. h3 {[%emt 0:00:26]} d5 {[%emt 0:01:45]} 5. Bb5 {[%emt 0:00:12]} Bd6 {[%emt 0:00:44]} 6. Nf3 {[%emt 0:00:14]} Qe7 {[%emt 0:04:59]} 7. d4 {[%emt 0:00:11]} exd4 {[%emt 0:00:41]} 8. Qxd4 {[%emt 0:00:09]} Bd7 {[%emt 0:04:18]} 9. Bxc6 {[%emt 0:00:14]} Bxc6 {[%emt 0:05:50]} 10. Ne5 {[%emt 0:18:12]} Bxe5 {[%emt 0:13:07]} 11. Qxe5 {[%emt 0:00:07]} Qxe5 {[%emt 0:01:10]} 12. Bxe5 {[%emt 0:00:06]} O-O-O {[%emt 0:00:21]} 13. O-O {[%emt 0:07:57]} Ne8 {[%emt 0:01:44]} 14. Nc3 {[%emt 0:06:56]} f6 {[%emt 0:00:58]} 15. Bd4 1/2-1/2